[Event "55th Iranian-ch Men Final 2022"]
[Site "Iran"]
[Date "2022.06.18"]
[Round "5.3"]
[White "Rastbod, Ali"]
[Black "Daghli, Arash"]
[Result "0-1"]
[ECO "D36"]
[WhiteElo "2362"]
[BlackElo "2441"]
[Annotator "TA"]
[PlyCount "92"]
[EventDate "2022.06.15"]
[EventType "tourn"]
[EventCountry "IRI"]
[SourceTitle "playchess.com"]
[Source "ChessBase"]
[SourceQuality "1"]
[TimeControl "40/5400+30:1800+30"]

{[%evp 18,92,19,13,16,13,26,20,35,25,27,20,25,7,20,12,12,7,10,4,13,0,0,0,0,-5,-5,-25,-7,-35,0,0,-7,-27,2,-26,-33,-32,-33,-30,-18,-25,-31,-33,-34,-24,-43,-118,-76,-156,-79,-80,-95,-104,-87,-97,-90,-97,-88,-183,-178,-174,-175,-588,-568,-739,-435,-637,-637,-618,-618,-602,-196,-197,-195,-680,-643]} 1. c4 {[%emt 1:31:00]} e6 {[%emt 0:03:02]} 2. Nc3 {[%emt 0:00:30]} d5 {[%emt 0:00:11]} 3. d4 {[%emt 0:00:00]} Nf6 {[%emt 0:00:28]} 4. cxd5 {[%emt 0:00:00]} exd5 {[%emt 0:00:10]} 5. Bg5 {[%emt 0:00:00]} c6 {[%emt 0:00:15]} 6. e3 {[%emt 0:00:00]} h6 {[%emt 0:00:10]} 7. Bh4 {[%emt 0:00:00]} Be7 {[%emt 0:00:11]} 8. Bd3 {[%emt 0:00:00]} O-O {[%emt 0:00:15]} 9. Qc2 {[%emt 0:00:00] 9.Nge2 is more advanced technology.} Re8 {[%emt 0:00:09]} 10. Nge2 {[%emt 0:00:00]} a5 {[%emt 0:00:22] D36: Queen's Gambit Declined: Exchange Variation: Main line (5 Bg5 c6 6 Qc2).} 11. h3 {[%emt 0:00:00]} Na6 {[%emt 0:00:37]} 12. a3 {[%emt 0:00:00] Inhibits Nb4.} Nc7 {[%emt 0:00:09] [#] The position is equal.} 13. Bg3 $146 {[%emt 0:00:00]} ({Predecessor:} 13. g4 Ne6 14. Rd1 b5 15. Kf1 Bd7 16. Kg2 Rc8 17. Bg3 Qb6 18. Qd2 Qb7 19. Nf4 {½-½ (66) Lupulescu,C (2656)-Adams,M (2716) Tornelo INT 2021}) 13... Ne6 {[%emt 0:00:40]} 14. Be5 {[%emt 0:00:00]} b6 {[%emt 0:06:27]} 15. Rd1 {[%emt 0:00:00]} Bb7 {[%emt 0:04:39]} 16. Bf5 {[%emt 0:00:00]} Bf8 {[%emt 0:02:13]} 17. O-O {[%emt 0:00:00]} b5 {[%emt 0:09:36]} 18. Nc1 {[%emt 0:00:00][%cal Be2c1,Bc1d3,Bd3e5][%mdl 32]} Ng5 {[%emt 0:13:07]} 19. Nd3 {[%emt 0:00:00]} Bc8 {[%emt 0:14:03]} 20. Bxc8 {[%emt 0:00:00]} Rxc8 {[%emt 0:00:10]} 21. Bxf6 {[%emt 0:00:00]} Qxf6 {[%emt 0:00:03]} 22. Ne5 {[%emt 0:00:00]} Qe6 {[%emt 0:06:24]} 23. Qd3 {[%emt 0:00:00]} f6 {[%emt 0:20:53]} 24. Ng6 {[%emt 0:00:00]} Bd6 {[%emt 0:00:12]} 25. Nf4 {[%emt 0:00:00] Pair of Knights!} Qd7 {[%emt 0:04:08]} (25... Bxf4 $5 26. exf4 Nf7 $15) 26. Qg6 {[%emt 0:02:48]} Bxf4 {[%emt 0:01:31]} 27. exf4 {[%emt 0:01:19]} Nf7 {[%emt 0:00:08]} 28. a4 {[%emt 0:00:06]} b4 {[%emt 0:01:22]} 29. Na2 {[%emt 0:00:19]} c5 $36 {[%emt 0:01:24][%mdl 2048] Black has good play.} 30. dxc5 {[%emt 0:00:56]} Qxa4 {[%emt 0:00:17]} 31. Nc1 {[%emt 0:00:08]} Rxc5 {[%emt 0:00:34]} 32. Nd3 {[%emt 0:00:01]} (32. Qd3 $15) 32... Rcc8 {[%emt 0:00:35]} 33. Rd2 {[%emt 0:03:08] [#]} ({Better is} 33. Rfe1) 33... Nd6 {[%emt 0:04:57]} ({Black should try} 33... b3 $1 {Strongly threatening ...Rc2.} 34. Rdd1 Rc2) 34. Ne5 {[%emt 0:00:56]} fxe5 {[%emt 0:04:31]} 35. Qxd6 {[%emt 0:00:01]} Rcd8 {[%emt 0:00:29]} 36. Qc5 {[%emt 0:00:46]} exf4 {[%emt 0:00:44]} 37. Rxd5 {[%emt 0:00:02]} Qa2 {[%emt 0:01:46][%csl LRb2,LRd5]} 38. Rf5 {[%emt 0:03:29]} (38. Rxd8 $17 Rxd8 39. Re1) 38... Qxb2 $19 {[%emt 0:01:27] [#] Threatens to win with ...Qe2.} 39. Qxa5 {[%emt 0:00:01]} b3 {[%emt 0:01:05][%cal Bb4b3,Bb3b2][%mdl 32] White must now prevent ...Qc2.} 40. Rxf4 $2 {[%emt 0:00:00]} ({Wrong is} 40. Qc7 $2 Qc2 41. Rc5 Qd3 $19) (40. Qb4) 40... Qe2 {[%emt 0:00:00][%cal Oe2f1] And now ...Qxf1+! would win.} 41. Rb1 {[%emt 0:15:40]} Qc2 {[%emt 0:06:37]} 42. Rf1 {[%emt 0:14:37]} (42. Qf5 $142 Rd1+ 43. Rxd1 Qxd1+ 44. Kh2) 42... b2 {[%emt 0:08:48]} 43. Qa2+ {[%emt 0:02:13]} Kh8 {[%emt 0:00:42] ( -> ...Rd1). Active counter play!} 44. Qb1 {[%emt 0:00:14] Prevents Rd1.} Qxb1 (44... Re2 45. Qxc2 Rxc2) 45. Rxb1 {[%emt 0:00:02]} Rd2 {[%emt 0:14:03]} 46. g4 $2 {[%emt 0:00:46]} (46. Rb4 Ree2 47. Rf1) 46... Rc8 {[%emt 0:00:28] Weighted Error Value: White=0.67/Black=0.28 (precise)} 0-1

[Event "55th Iranian-ch Men Final 2022"]
[Site "Iran"]
[Date "2022.06.18"]
[Round "5.4"]
[White "Tahbaz, Arash"]
[Black "Daneshvar, Bardiya"]
[Result "0-1"]
[ECO "D02"]
[WhiteElo "2451"]
[BlackElo "2486"]
[Annotator "TA"]
[PlyCount "76"]
[EventDate "2022.06.15"]
[EventType "tourn"]
[EventCountry "IRI"]
[SourceTitle "playchess.com"]
[Source "ChessBase"]
[SourceQuality "1"]
[TimeControl "40/5400+30:1800+30"]

{[%evp 9,76,23,45,26,27,31,27,7,18,15,10,5,31,10,41,13,8,8,1,-6,-16,-95,-90,-93,-81,-106,-108,-133,-127,-156,-159,-157,-140,-240,-234,-237,-236,-272,-277,-267,-271,-266,-265,-279,-277,-300,-310,-306,-296,-297,-297,-319,-311,-360,-343,-371,-375,-357,-360,-488,-494,-495,-482,-584,-569,-806,-723,-1020,-968]} 1. Nf3 {[%emt 0:00:06]} d5 {[%emt 0:00:05]} 2. g3 {[%emt 1:31:24]} Nd7 3. d4 {[%emt 0:00:00]} Nb6 {[%emt 0:00:10]} 4. Bg2 {[%emt 0:00:00]} Bf5 {[%emt 0:00:12]} 5. O-O {[%emt 0:00:00]} e6 {[%emt 0:00:11]} 6. b3 {[%emt 0:00:00] D02: 1 d4 d5 2 Nf3 sidelines, including 2...Nf6 3 g3 and 2...Nf6 3 Bf4.} Nf6 {[%emt 0:01:36]} 7. c4 {[%emt 0:00:00]} c6 {[%emt 0:01:15] [#]} 8. Nfd2 $146 {[%emt 0:00:00] White has an edge.} ({Predecessor:} 8. Nbd2 h6 9. Bb2 Be7 10. Ne5 O-O 11. e3 Nbd7 12. Qe2 Bh7 13. Rfd1 a5 14. a3 {½-½ (37) Kamsky,G (2662)-Moroni,L (2575) Cap d'Agde 2021}) 8... Be7 {[%emt 0:08:18]} 9. Nc3 {[%emt 0:00:00]} O-O {[%emt 0:00:46]} 10. e4 {[%emt 0:00:00]} Bg4 {[%emt 0:18:43]} 11. f3 {[%emt 0:00:00]} Bh5 {[%emt 0:01:39]} 12. e5 {[%emt 0:00:00]} Ne8 {[%emt 0:13:53]} 13. c5 {[%emt 0:00:00] Hoping for g4.} Nd7 {[%emt 0:00:15][%cal Bb6d7,Bd7b8,Bb8c6][%mdl 32]} 14. b4 {[%emt 0:00:00]} a5 {[%emt 0:05:58]} 15. b5 {[%emt 0:00:00]} (15. bxa5 $1 $11 f6 16. exf6 Bxf6 17. Nb3) 15... cxb5 $1 $17 {[%emt 0:04:12] Black keeps a firm grip on the game.} 16. Nxb5 {[%emt 0:00:00]} b6 $1 {[%emt 0:02:05]} 17. c6 {[%emt 0:00:00]} Nb8 {[%emt 0:00:06]} 18. Qe2 {[%emt 0:00:00]} Nxc6 {[%emt 0:02:55]} 19. g4 {[%emt 0:00:00]} Bg6 {[%emt 0:00:42] Strongly threatening ...Nc7.} 20. f4 {[%emt 0:00:00] [#]} Qd7 $1 {[%emt 0:04:45]} 21. f5 {[%emt 0:00:00]} (21. Ba3 $17) 21... exf5 $19 {[%emt 0:00:13]} 22. gxf5 {[%emt 0:00:00]} Bxf5 {[%emt 0:00:09]} 23. Rxf5 {[%emt 0:00:00]} Qxf5 {[%emt 0:00:05]} 24. Bxd5 {[%emt 0:00:00] [#]} Nxd4 {[%emt 0:13:13]} 25. Nxd4 {[%emt 0:00:00] [#]} Qd7 {[%emt 0:00:08]} ({Not} 25... Bc5 26. N2b3 Qd7 27. Bxa8 $17) 26. Qe4 {[%emt 0:10:37]} Rd8 {[%emt 0:01:00]} 27. Nc6 {[%emt 0:00:33]} Bc5+ {[%emt 0:00:11]} 28. Kg2 {[%emt 0:00:15]} Qxd5 {[%emt 0:00:21] Really sharp!} 29. Nxd8 {[%emt 0:00:10]} Qxd8 {[%emt 0:00:04]} 30. Nf3 {[%emt 0:00:24] Prevents Bd4.} Nc7 {[%emt 0:01:01]} ({Avoid the trap} 30... Qd1 $2 31. Rb1 Qd7 32. Ng5 $19) 31. Be3 {[%emt 0:01:35]} Ne6 {[%emt 0:01:52]} 32. Rb1 {[%emt 0:00:32]} Bxe3 {[%emt 0:01:08]} 33. Qxe3 {[%emt 0:00:01]} Qd5 {[%emt 0:00:10]} 34. Rxb6 {[%emt 0:00:43]} Qxa2+ {[%emt 0:00:07] Black is clearly winning.} 35. Kg3 {[%emt 0:00:02]} Qc4 {[%emt 0:01:29] Inhibits Rc6.} 36. Rb7 {[%emt 0:01:37]} h6 {[%emt 0:00:35]} 37. Ra7 {[%emt 0:00:21]} a4 {[%emt 0:01:43]} 38. Qa3 {[%emt 0:00:37]} Nc5 {[%emt 0:00:30] Weighted Error Value: White=0.44/Black=0.05 (flawless)} 0-1

[Event "55th Iranian-ch Men Final 2022"]
[Site "Iran"]
[Date "2022.06.18"]
[Round "5.5"]
[White "Ashraf, Artin"]
[Black "Khamisi, S Jafar"]
[Result "0-1"]
[ECO "D23"]
[WhiteElo "2096"]
[BlackElo "2118"]
[Annotator "TA"]
[PlyCount "76"]
[EventDate "2022.06.15"]
[EventType "tourn"]
[EventCountry "IRI"]
[SourceTitle "playchess.com"]
[Source "ChessBase"]
[SourceQuality "1"]
[TimeControl "40/5400+30:1800+30"]

{[%evp 16,76,15,8,32,19,12,16,17,7,9,10,12,8,40,15,37,18,31,37,30,53,33,35,44,39,59,74,85,37,56,0,0,0,0,0,7,3,0,-261,-115,-118,-70,-252,-71,-102,62,50,131,-73,-64,-68,-66,-133,0,-941,-926,-982,-983,-3066,-2928,-29990,-29990]} 1. d4 {[%emt 0:04:45]} d5 {[%emt 0:00:11]} 2. c4 {[%emt 0:00:09]} c6 {[%emt 0:00:04]} 3. Nf3 {[%emt 0:00:10]} Nf6 {[%emt 0:00:06]} 4. Qc2 {[%emt 0:00:10]} dxc4 {[%emt 0:00:17]} 5. Qxc4 {[%emt 0:00:08]} Bf5 {[%emt 0:00:39]} 6. g3 {[%emt 0:00:44]} e6 {[%emt 0:01:38]} 7. Bg2 {[%emt 0:00:19]} Nbd7 {[%emt 0:00:59]} 8. O-O {[%emt 0:00:16]} Be7 {[%emt 0:01:19]} 9. e3 {[%emt 0:04:44]} h6 {[%emt 0:01:01] D23: Queen's Gambit Accepted: 3 Nf3 Nf6 sidelines.} 10. Rd1 {[%emt 0:00:55]} O-O {[%emt 0:00:15]} 11. Qe2 {[%emt 0:00:50] 11.Nc3 is not played anymore.} Rc8 {[%emt 0:03:34] The position is equal. Recently 11...Bh7 got a lot of attention.} 12. Nc3 {[%emt 0:04:40]} Ne4 {[%emt 0:01:21]} 13. Ne1 {[%emt 0:14:09]} Nxc3 {[%emt 0:10:26]} 14. bxc3 {[%emt 0:00:07]} Qc7 {[%emt 0:07:28] [#]} 15. c4 $146 {[%emt 0:12:41]} ({Predecessor:} 15. Nd3 Bh7 16. e4 c5 17. Bf4 Qa5 18. Rac1 Qa6 19. Be3 Nf6 20. f3 cxd4 21. cxd4 Ba3 22. Rxc8 {½-½ (22) Kunte,A (2538)-Deepan Chakkravarthy,J (2461) Mumbai 2012}) 15... Rfd8 {[%emt 0:19:04]} 16. Bb2 {[%emt 0:07:02]} (16. e4 $5 {[%cal Re4f5]} Bh7 17. Rb1 $14) 16... c5 {[%emt 0:14:53]} 17. e4 {[%emt 0:08:06]} Bg6 {[%emt 0:02:22]} 18. d5 {[%emt 0:00:55]} exd5 $1 {[%emt 0:02:15]} 19. cxd5 {[%emt 0:08:46] aiming for e5.} Bd6 {[%emt 0:16:43] Prevents e5.} 20. f4 {[%emt 0:03:43]} c4 {[%emt 0:00:53]} 21. Rac1 {[%emt 0:04:51]} Bb4 {[%emt 0:06:17]} 22. Bd4 {[%emt 0:01:22]} ({Better is} 22. f5 $16 Bh5 23. Qxh5 Bxe1 24. Bxg7 (24. Rxe1 Qb6+ 25. Kh1 Qxb2 $15) 24... Kxg7 25. Rxe1) 22... b5 {[%emt 0:00:52]} 23. Qb2 {[%emt 0:06:22]} (23. Rb1 $14 Qa5 24. f5) 23... Qa5 $11 {[%emt 0:01:12]} 24. Nc2 {[%emt 0:02:56] Prevents Ba3.} (24. Bxg7 $2 c3 25. Bxc3 Bxc3 $19) 24... Bf8 {[%emt 0:02:51]} 25. Ne3 {[%emt 0:06:37][%cal Oa2a4]} Nc5 {[%emt 0:01:45]} 26. f5 {[%emt 0:02:04]} Bh7 {[%emt 0:03:17]} 27. a4 $2 {[%emt 0:00:57][%mdl 8192]} (27. Rb1 $11 {and White has nothing to worry.} a6 28. e5) 27... Nxa4 {[%emt 0:00:35]} (27... Nb3 $1 $19 {and Black stays clearly on top.} 28. e5 (28. axb5 $2 Ba3 $19) 28... Nxd4 29. Qxd4 Bc5) 28. Qf2 {[%emt 0:01:02]} c3 {[%emt 0:00:21]} (28... Bc5 $17 {And now ...Bxd4 would win.} 29. Ra1 Bxd4 30. Rxd4 Qc3) 29. e5 $2 {[%emt 0:00:27]} (29. Ra1 $15) 29... b4 $2 {[%emt 0:00:36]} (29... Nb2 $1 $19 {[%cal Rb2d1] is more deadly.} 30. d6 Nxd1 31. Rxd1 b4) 30. f6 {[%emt 0:01:59]} b3 $2 {[%emt 0:01:20]} (30... g5 $1 $17 {Strongly threatening ...Nb2.} 31. e6 b3) 31. e6 $14 {[%emt 0:00:31] Threatens to win with fxg7.} ({Weaker is} 31. fxg7 Bxg7 32. e6 fxe6 33. Bxg7 Kxg7 $19) 31... fxe6 {[%emt 0:00:46] [#]} ({Black should play} 31... g5 $1 $14) 32. fxg7 $2 {[%emt 0:00:52]} (32. Bh3 $1 $16 {[%cal Rh3e6] is forced if you want to stay better.} e5 33. Be6+ Kh8 34. Bxe5) 32... Bxg7 $17 {[%emt 0:00:23] Really sharp!} 33. Bxg7 {[%emt 0:00:34]} Kxg7 {[%emt 0:00:05]} 34. dxe6 {[%emt 0:01:17] [#] Intending Qf7+ and mate.} Qe5 {[%emt 0:00:39]} ({Black should try} 34... Bg6 $1 $17 35. Be4 Rf8 36. Rd7+ Kg8) 35. Nd5 $2 {[%emt 0:00:49][%mdl 8192]} (35. Rxd8 $11 Rxd8 36. Rf1) 35... b2 $19 {[%emt 0:00:57] ...c2 is the strong threat.} 36. Qf7+ {[%emt 0:00:49]} Kh8 {[%emt 0:00:01]} 37. Nf6 {[%emt 0:00:21]} Bg8 {[%emt 0:00:44]} 38. Qg6 {[%emt 0:01:39]} Qe3+ {[%emt 0:00:19] Weighted Error Value: White=1.00/Black=0.41} 0-1

[Event "55th Iranian-ch Men Final 2022"]
[Site "Iran"]
[Date "2022.06.18"]
[Round "5.6"]
[White "Ghaem Maghami, Ehsan"]
[Black "Darini, Pouria"]
[Result "1/2-1/2"]
[ECO "A33"]
[WhiteElo "2519"]
[BlackElo "2431"]
[Annotator "TA"]
[PlyCount "53"]
[EventDate "2022.06.15"]
[EventType "tourn"]
[EventCountry "IRI"]
[SourceTitle "playchess.com"]
[Source "ChessBase"]
[SourceQuality "1"]
[TimeControl "40/5400+30:1800+30"]

{[%evp 25,53,0,0,0,0,0,0,0,0,0,0,0,12,14,11,22,27,33,38,27,19,6,6,8,8,0,0,0,11,0]} 1. Nf3 {[%emt 0:12:30][%cal Bg1f3,Bf3d4,Bd4b5,Bb5d6][%mdl 32]} c5 {[%emt 0:01:53]} 2. c4 {[%emt 0:00:22]} Nc6 {[%emt 0:00:13]} 3. d4 {[%emt 0:05:16]} cxd4 {[%emt 0:00:16]} 4. Nxd4 {[%emt 0:00:08]} Nf6 {[%emt 0:00:04]} 5. Nc3 {[%emt 0:00:15]} e6 {[%emt 0:00:06][%cal Be7e6,Be6e5,Be5f4][%mdl 32]} 6. Bf4 {[%emt 0:07:56]} d5 {[%emt 0:00:32]} 7. Ndb5 {[%emt 0:11:02]} e5 {[%emt 0:00:18]} 8. cxd5 {[%emt 0:00:10]} exf4 {[%emt 0:00:08]} 9. dxc6 {[%emt 0:00:06]} bxc6 {[%emt 0:00:08]} 10. Qxd8+ {[%emt 0:00:11]} Kxd8 {[%emt 0:00:02]} 11. Rd1+ {[%emt 0:00:11]} Bd7 {[%emt 0:00:05]} 12. Nd6 {[%emt 0:00:08]} Kc7 {[%emt 0:10:40]} 13. Nxf7 {[%emt 0:01:39]} Rg8 {[%emt 0:00:14]} 14. Ne5 {[%emt 0:10:04] A33: Symmetrical English: 2 Nf3 Nf6 3 d4 cxd4 4 Nxd4 e6 5 Nc3 Nc6.} Rb8 $1 {[%emt 0:20:13]} 15. Nxd7 {[%emt 0:10:23]} Nxd7 {[%emt 0:01:21]} 16. g3 {[%emt 0:00:43]} Rxb2 {[%emt 0:15:31] [#] White must now prevent ...Bb4.} 17. Bh3 {[%emt 0:00:36]} Nc5 {[%emt 0:31:11]} 18. O-O {[%emt 0:01:52]} Rc2 {[%emt 0:01:05]} 19. Rc1 {[%emt 0:02:42]} Rxc1 {[%emt 0:00:03]} 20. Rxc1 {[%emt 0:00:06] [#]} g5 $146 {[%emt 0:00:02]} ({Predecessor:} 20... fxg3 21. hxg3 Be7 22. Bg2 Rb8 23. Rc2 Rb4 24. e3 Rc4 25. Bf1 Rb4 26. Ne2 Rb1 {½-½ (52) Kortschnoj,V (2600)-Portisch,L (2620) Bad Kissingen 1983}) 21. Bf5 {[%emt 0:02:51]} Rg7 {[%emt 0:04:48]} 22. Kg2 {[%emt 0:02:26]} Rf7 {[%emt 0:00:23]} 23. g4 {[%emt 0:01:45] The position is equal.} h6 {[%emt 0:02:36]} 24. Kf3 {[%emt 0:05:54]} Be7 {[%emt 0:01:35]} 25. Nb1 {[%emt 0:06:57]} Rf8 {[%emt 0:00:13]} 26. Nd2 {[%emt 0:00:54]} Rb8 {[%emt 0:00:26]} 27. Ne4 {[%emt 0:09:25] Weighted Error Value: White=0.03 (flawless) /Black=0.02 (flawless)} 1/2-1/2

[Event "55th Iranian-ch Men Final 2022"]
[Site "Iran"]
[Date "2022.06.18"]
[Round "5.7"]
[White "Mousavi, Seyed Khalil"]
[Black "Atakhan, Abtin"]
[Result "1/2-1/2"]
[ECO "A36"]
[WhiteElo "2524"]
[BlackElo "2358"]
[Annotator "TA"]
[PlyCount "36"]
[EventDate "2022.06.15"]
[EventType "tourn"]
[EventCountry "IRI"]
[SourceTitle "playchess.com"]
[Source "ChessBase"]
[SourceQuality "1"]
[TimeControl "40/5400+30:1800+30"]

{[%evp 11,36,0,21,3,20,14,25,20,25,29,33,11,21,16,43,-1,-5,-3,0,-28,-16,-34,-30,-41,-33,-48,-41]} 1. e4 {[%emt 0:04:51]} c5 {[%emt 0:00:58]} 2. c4 {[%emt 0:00:30]} Nc6 {[%emt 0:00:30]} 3. Nc3 {[%emt 0:00:30]} g6 {[%emt 0:00:30]} 4. g3 {[%emt 0:00:30]} Bg7 {[%emt 0:00:30]} 5. Bg2 {[%emt 0:00:30]} d6 {[%emt 0:00:30]} 6. Nge2 {[%emt 0:00:30]} Bd7 {[%emt 0:00:30]} 7. d3 {[%emt 0:00:30] A36: Symmetrical English vs ...g6: 4 Bg2 Bg7.} Qc8 {[%emt 0:00:30]} 8. h3 {[%emt 0:00:30]} Rb8 {[%emt 0:00:30]} 9. Be3 {[%emt 0:00:30] [#] White has an edge.} Nd4 $146 {[%emt 0:00:30]} ({Predecessor:} 9... Nf6 10. b3 O-O 11. d4 a6 12. dxc5 dxc5 13. Bxc5 b6 14. Be3 Rd8 15. Nd5 e6 16. Nxb6 {½-½ (42) Serovey,M (1866)-Laine,J (2040) ICCF email 2012}) 10. Rc1 {[%emt 0:00:30]} e6 {[%emt 0:00:30]} 11. Qd2 {[%emt 0:00:30]} a6 {[%emt 0:00:30]} 12. O-O {[%emt 0:23:53]} e5 {[%emt 0:34:43]} 13. Bxd4 {[%emt 0:08:39]} (13. f4 $5 {[%cal Rf4e5]}) 13... cxd4 {[%emt 0:01:45]} 14. Nd5 {[%emt 0:01:54][%cal Oc4c5]} Nf6 {[%emt 0:55:04]} 15. Nb6 {[%emt 0:13:02] Pair of Knights!} Qc7 {[%emt 0:00:00]} 16. Qb4 {[%emt 0:02:35]} O-O {[%emt 0:00:00][%cal Od7b5]} 17. f4 {[%emt 0:39:06]} Bc6 18. c5 {[%emt 0:00:00]} Nd7 {[%emt 0:00:00] Weighted Error Value: White=0.09 (flawless) /Black=0.10 (very precise)} 1/2-1/2

[Event "55th Iranian-ch Men Final 2022"]
[Site "Iran"]
[Date "2022.06.19"]
[Round "6.1"]
[White "Mosadeghpour, Masoud"]
[Black "Atakhan, Abtin"]
[Result "1-0"]
[ECO "B94"]
[WhiteElo "2474"]
[BlackElo "2358"]
[Annotator "TA"]
[PlyCount "111"]
[EventDate "2022.06.15"]
[EventType "tourn"]
[EventCountry "IRI"]
[SourceTitle "playchess.com"]
[Source "ChessBase"]
[SourceQuality "1"]
[TimeControl "40/5400+30:1800+30"]

{[%evp 12,111,30,0,17,-6,9,8,64,62,54,54,71,71,87,87,108,102,125,114,111,112,118,114,131,96,142,151,154,136,157,64,59,25,33,26,31,0,25,22,14,7,4,0,0,0,0,0,0,0,0,0,0,0,0,-110,-110,-160,0,0,8,8,8,5,8,0,53,53,213,220,217,216,195,207,225,231,280,279,281,283,297,297,289,268,344,333,427,356,383,547,546,547,524,501,527,328,29986,29987,29993,29994,29994,1263]} 1. e4 {[%emt 0:06:07]} c5 {[%emt 0:00:18]} 2. Nf3 {[%emt 1:25:23]} d6 {[%emt 0:00:14]} 3. d4 {[%emt 0:00:00]} cxd4 {[%emt 0:00:09]} 4. Nxd4 {[%emt 0:00:00]} Nf6 {[%emt 0:00:11]} 5. Nc3 {[%emt 0:00:00]} a6 {[%emt 0:00:15]} 6. Nb3 {[%emt 0:00:00]} e5 {[%emt 0:12:22]} 7. Bg5 {[%emt 0:00:00]} Be6 {[%emt 0:02:00] B94: Sicilian Najdorf: 6 Bg5 Nbd7.} 8. Qd2 {[%emt 0:00:00]} Be7 {[%emt 0:07:01] 8...Be7 scores better than 8...Nbd7.} 9. f4 {[%emt 0:00:00]} h6 {[%emt 0:06:01]} (9... Nbd7 $11) 10. Bxf6 $14 {[%emt 0:00:00]} Bxf6 {[%emt 0:00:07]} 11. f5 {[%emt 0:00:00]} Bxb3 {[%emt 0:04:12]} 12. axb3 {[%emt 0:00:00] [#]} Nc6 $146 {[%emt 0:05:14]} ({Predecessor:} 12... Nd7 13. Bc4 Nb6 14. O-O O-O 15. Kh1 Rc8 16. Bd3 d5 17. Qe2 d4 18. Nd1 Bg5 {½-½ (25) Ramanauskas,L (1765)-Cekanauskas,J (1732) Panevezys 2012}) 13. Nd5 {[%emt 0:00:00]} Bg5 {[%emt 0:14:03]} 14. Qf2 {[%emt 0:00:00]} Rc8 {[%emt 0:07:41]} 15. h4 {[%emt 0:00:00]} Bf6 {[%emt 0:00:36]} 16. c3 {[%emt 0:00:00] White is much more active.} Ne7 {[%emt 0:03:21]} 17. Nxf6+ {[%emt 0:00:00]} gxf6 {[%emt 0:00:52]} 18. Rh3 {[%emt 0:00:00]} Rg8 {[%emt 0:03:07]} (18... d5 $142) 19. O-O-O {[%emt 0:00:00]} Rc6 {[%emt 0:03:53]} 20. Qd2 {[%emt 0:00:00]} h5 {[%emt 0:01:24]} 21. Qh6 {[%emt 0:00:00]} (21. Rd3 $16) 21... Qb6 {[%emt 0:07:14]} 22. Qxf6 {[%emt 0:00:00]} (22. Bc4 Qf2 $11) 22... Rg4 $1 {[%emt 0:03:48]} 23. Qh8+ {[%emt 0:00:00]} (23. Bc4 d5 24. Qh8+ (24. Qxe5 $2 f6 $19) 24... Rg8 25. Qxh5 (25. Qxe5 f6 $17) 25... dxc4 26. bxc4 Rd6 27. Rxd6 Qxd6 $17) 23... Ng8 $1 {[%emt 0:02:15]} 24. Rhd3 {[%emt 0:04:19] g3 is the strong threat.} (24. Kc2 $5 {[%cal Rh3f3]}) 24... Ke7 {[%emt 0:01:00]} 25. f6+ {[%emt 0:04:07]} Nxf6 {[%emt 0:01:00]} 26. Rf3 {[%emt 0:00:02]} Rf4 {[%emt 0:02:18]} 27. Bc4 {[%emt 0:02:56]} Rxf3 {[%emt 0:06:11]} 28. gxf3 {[%emt 0:00:01]} Qe3+ {[%emt 0:00:15]} 29. Rd2 {[%emt 0:00:21]} b5 {[%emt 0:02:19]} 30. Qa8 {[%emt 0:01:05] Dancing on a razor blade.} Qc5 {[%emt 0:02:36]} 31. Bd5 {[%emt 0:00:31]} Rc7 {[%emt 0:00:16]} 32. Kb1 {[%emt 0:01:03]} ({Avoid the trap} 32. Qxa6 $2 b4 33. Kd1 (33. Bc4 $2 Ra7 $19) 33... bxc3 34. bxc3 Qe3 $19) 32... b4 {[%emt 0:01:37]} 33. Rd3 {[%emt 0:00:31]} (33. Bc4 $11 {remains equal.}) 33... Qg1+ $17 {[%emt 0:00:18]} 34. Ka2 {[%emt 0:00:11] [#]} (34. Kc2 $142) 34... Qb6 $2 {[%emt 0:02:14]} (34... Qf1 $1 $17 {[%cal Rf1d3]} 35. Qb8 Ne8) 35. Bc4 $11 {[%emt 0:00:38]} Rc5 {[%emt 0:00:25] ( -> ...Ra5+)} 36. cxb4 {[%emt 0:00:43]} Qxb4 {[%emt 0:00:10]} 37. Rc3 {[%emt 0:00:30]} Qb6 {[%emt 0:00:38]} 38. Kb1 $36 {[%emt 0:00:26][%mdl 2048] White is more active.} a5 {[%emt 0:00:45]} ({Black should play} 38... d5 $11 39. Qxa6 (39. exd5 Nxd5 40. Bxd5 Qg6+ 41. Be4 Qg1+ 42. Kc2 Qf2+ 43. Kd1 Qf1+ 44. Kd2 Qf2+ 45. Kc1 Qe1+ 46. Kc2 Qf2+ 47. Kd1 Qf1+ 48. Kd2 Qf2+ 49. Kd3 Qf1+ 50. Ke3 Qe1+ 51. Kd3 Qd1+ 52. Ke3 Qe1+ 53. Kd3 Qd1+ 54. Ke3 Qe1+ $11) 39... Qxa6 40. Bxa6 Rxc3 41. bxc3 dxe4 42. fxe4 Nxe4) 39. Qh8 $14 {[%emt 0:00:29]} d5 $2 {[%emt 0:01:07] [#] Black cannot hold the game after this.} (39... Qc6 $14) 40. exd5 $1 $18 {[%emt 0:00:00]} Qd6 {[%emt 0:00:00]} 41. Re3 {[%emt 0:05:39]} a4 {[%emt 0:15:25]} 42. Qg7 {[%emt 0:04:23]} axb3 {[%emt 0:00:09]} 43. Bxb3 {[%emt 0:00:19]} Rb5 {[%emt 0:00:55][%cal Ob5b3]} 44. Qg5 {[%emt 0:02:45]} Kd8 {[%emt 0:01:33]} 45. Bc4 {[%emt 0:11:01]} Rb4 {[%emt 0:14:04]} 46. b3 {[%emt 0:00:21]} Rb6 {[%emt 0:00:02]} 47. Qxe5 {[%emt 0:01:35]} Qc5 {[%emt 0:00:00]} 48. Kc2 {[%emt 0:01:32]} Nd7 {[%emt 0:00:49]} 49. Qe8+ {[%emt 0:01:56]} Kc7 {[%emt 0:00:01]} 50. Rc3 {[%emt 0:00:34]} ({Much less strong is} 50. Re7 Qf2+ 51. Kb1 Qg1+ 52. Kc2 Qf2+ 53. Kc1 Qg1+ 54. Kc2 Qf2+ $18) 50... Kd6 {[%emt 0:00:01]} 51. Qxf7 {[%emt 0:01:34]} Qf2+ {[%emt 0:00:02]} 52. Kb1 {[%emt 0:00:13][%cal Oc4b5] Threatens to win with Bb5!} Qd4 {[%emt 0:03:28]} 53. Qe6+ {[%emt 0:02:12]} Kc5 $2 {[%emt 0:00:28] [#]} (53... Kc7 $18 54. Qe1 Kd8) 54. Qxd7 $1 {[%emt 0:01:12] White mates.} Rg6 {[%emt 0:00:35]} (54... Qe5 55. Qa7) 55. Qa7+ {[%emt 0:01:24]} Rb6 {[%emt 0:00:14]} 56. Qa3+ {[%emt 0:02:27] Weighted Error Value: White=0.14 (very precise) /Black=0.31} 1-0